[Event "Live Chess"]
[Site "Chess.com"]
[Date "2024.06.02"]
[Round "-"]
[White "Duke_of_Bebington"]
[Black "elephantgerrald"]
[Result "1-0"]
[WhiteElo "1659"]
[BlackElo "806"]
[TimeControl "300"]
[EndTime "23:18:35 PDT"]
[Termination "Duke_of_Bebington won by checkmate"]

1. e4 {[%clk 0:04:58.5]} 1... e5 {[%clk 0:04:47.8]} 2. Nf3 {[%clk 0:04:56.2]}
2... Nc6 {[%clk 0:04:45.7]} 3. Bc4 {[%clk 0:04:53.2]} 3... Nf6 {[%clk
0:04:38.9]} 4. O-O {[%clk 0:04:49.5]} 4... Bc5 {[%clk 0:04:35.9]} 5. c3 {[%clk
0:04:47.5]} 5... O-O {[%clk 0:04:34.4]} 6. d4 {[%clk 0:04:44.3]} 6... exd4
{[%clk 0:04:32.4]} 7. cxd4 {[%clk 0:04:44.2]} 7... Nxe4 {[%clk 0:04:25]} 8. dxc5
{[%clk 0:04:41.6]} 8... Nxc5 {[%clk 0:04:23.8]} 9. Be3 {[%clk 0:04:37.1]} 9...
d6 {[%clk 0:04:21.6]} 10. Bxc5 {[%clk 0:04:28.4]} 10... dxc5 {[%clk 0:04:19.5]}
11. Qxd8 {[%clk 0:04:20]} 11... Rxd8 {[%clk 0:04:18.1]} 12. Nc3 {[%clk
0:04:19.6]} 12... Nb4 {[%clk 0:04:15.7]} 13. Rad1 {[%clk 0:04:10.9]} 13... Bg4
{[%clk 0:04:09.4]} 14. Bxf7+ {[%clk 0:03:56.3]} 14... Kxf7 {[%clk 0:04:04]} 15.
Ne5+ {[%clk 0:03:55.4]} 15... Kf6 {[%clk 0:03:57.6]} 16. Nxg4+ {[%clk
0:03:54.8]} 16... Kg5 {[%clk 0:03:56.3]} 17. h3 {[%clk 0:03:48.9]} 17... h5
{[%clk 0:03:51.7]} 18. Ne5 {[%clk 0:03:40.4]} 18... Rxd1 {[%clk 0:03:49.1]} 19.
Rxd1 {[%clk 0:03:38.7]} 19... Kf5 {[%clk 0:03:47.5]} 20. Nf3 {[%clk 0:03:27.8]}
20... Re8 {[%clk 0:03:39.7]} 21. a3 {[%clk 0:03:20.5]} 21... Nc2 {[%clk
0:03:33.9]} 22. Nd5 {[%clk 0:03:09.6]} 22... c6 {[%clk 0:02:58.9]} 23. Nc3
{[%clk 0:02:53]} 23... g5 {[%clk 0:02:51.4]} 24. Kf1 {[%clk 0:02:42.7]} 24... g4
{[%clk 0:02:45.7]} 25. hxg4+ {[%clk 0:02:41]} 25... hxg4 {[%clk 0:02:44.6]} 26.
Ng1 {[%clk 0:02:39.2]} 26... Nd4 {[%clk 0:02:36.4]} 27. Nge2 {[%clk 0:02:34.3]}
27... Nc2 {[%clk 0:02:26.8]} 28. Rd2 {[%clk 0:02:29.9]} 28... Na1 {[%clk
0:02:13.1]} 29. Ng3+ {[%clk 0:02:27.7]} 29... Kg5 {[%clk 0:02:10.2]} 30. Nce4+
{[%clk 0:02:26]} 30... Kg6 {[%clk 0:02:07]} 31. Nxc5 {[%clk 0:02:18.7]} 31... b6
{[%clk 0:02:01.3]} 32. Nce4 {[%clk 0:02:12.5]} 32... Nb3 {[%clk 0:01:57.2]} 33.
Rd6+ {[%clk 0:02:10.2]} 33... Kg7 {[%clk 0:01:51.1]} 34. Rxc6 {[%clk 0:02:09.4]}
34... Nd4 {[%clk 0:01:44.1]} 35. Rc7+ {[%clk 0:02:04]} 35... Kg6 {[%clk
0:01:38.3]} 36. Rxa7 {[%clk 0:02:01.5]} 36... b5 {[%clk 0:01:29.4]} 37. Rd7
{[%clk 0:01:54.2]} 37... Nc2 {[%clk 0:01:23.5]} 38. Rd6+ {[%clk 0:01:50.6]}
38... Kf7 {[%clk 0:01:18.7]} 39. Ng5+ {[%clk 0:01:45.1]} 39... Ke7 {[%clk
0:01:11.3]} 40. Re6+ {[%clk 0:01:43.1]} 40... Kd7 {[%clk 0:01:03.1]} 41. Rxe8
{[%clk 0:01:41.6]} 41... Kxe8 {[%clk 0:01:01]} 42. N3e4 {[%clk 0:01:39.6]} 42...
b4 {[%clk 0:00:55.9]} 43. axb4 {[%clk 0:01:37.9]} 43... Nxb4 {[%clk 0:00:54.9]}
44. Nf6+ {[%clk 0:01:37.5]} 44... Ke7 {[%clk 0:00:52.4]} 45. Nxg4 {[%clk
0:01:37.4]} 45... Nd3 {[%clk 0:00:49.3]} 46. b3 {[%clk 0:01:29.6]} 46... Kd6
{[%clk 0:00:46.6]} 47. Ne3 {[%clk 0:01:28.1]} 47... Ke5 {[%clk 0:00:42.9]} 48.
Nf3+ {[%clk 0:01:25.8]} 48... Ke4 {[%clk 0:00:38.4]} 49. Nd2+ {[%clk 0:01:25.2]}
49... Kd4 {[%clk 0:00:31.7]} 50. Nec4 {[%clk 0:01:24.5]} 50... Kc3 {[%clk
0:00:27.8]} 51. g3 {[%clk 0:01:19.8]} 51... Nb4 {[%clk 0:00:25.2]} 52. f4 {[%clk
0:01:18.2]} 52... Kd4 {[%clk 0:00:19]} 53. Kg2 {[%clk 0:01:13.8]} 53... Kd5
{[%clk 0:00:18]} 54. Kf3 {[%clk 0:01:13.1]} 54... Ke6 {[%clk 0:00:16.8]} 55. g4
{[%clk 0:01:12.5]} 55... Kf6 {[%clk 0:00:16.6]} 56. g5+ {[%clk 0:01:10.9]} 56...
Kg7 {[%clk 0:00:16.5]} 57. Kg4 {[%clk 0:01:09.8]} 57... Nd5 {[%clk 0:00:16.4]}
58. f5 {[%clk 0:01:08.8]} 58... Nf6+ {[%clk 0:00:16.3]} 59. gxf6+ {[%clk
0:01:07.8]} 59... Kf7 {[%clk 0:00:15.7]} 60. b4 {[%clk 0:01:06.8]} 60... Kf8
{[%clk 0:00:15.3]} 61. b5 {[%clk 0:01:06.7]} 61... Kf7 {[%clk 0:00:13.7]} 62. b6
{[%clk 0:01:06.6]} 62... Kxf6 {[%clk 0:00:13.2]} 63. b7 {[%clk 0:01:06.5]} 63...
Kg7 {[%clk 0:00:12.3]} 64. b8=Q {[%clk 0:01:06.3]} 64... Kf6 {[%clk 0:00:10.8]}
65. Qd6+ {[%clk 0:01:05.3]} 65... Kg7 {[%clk 0:00:09.6]} 66. Qg6+ {[%clk
0:01:04.3]} 66... Kf8 {[%clk 0:00:09]} 67. Ne4 {[%clk 0:01:01.1]} 67... Ke7
{[%clk 0:00:07.4]} 68. Qf6+ {[%clk 0:00:59.4]} 68... Kd7 {[%clk 0:00:06.4]} 69.
Qd6+ {[%clk 0:00:58]} 69... Ke8 {[%clk 0:00:05.4]} 70. Nf6+ {[%clk 0:00:54.6]}
70... Kf7 {[%clk 0:00:03.1]} 71. Qe6+ {[%clk 0:00:52.6]} 71... Kg7 {[%clk
0:00:02.4]} 72. Ne8+ {[%clk 0:00:51.8]} 72... Kh8 {[%clk 0:00:02.3]} 73. Qf6+
{[%clk 0:00:49.4]} 73... Kh7 {[%clk 0:00:02.2]} 74. Qg7# {[%clk 0:00:48.8]} 1-0

[Event "Live Chess"]
[Site "Chess.com"]
[Date "2024.06.02"]
[Round "-"]
[White "Ziipyyy"]
[Black "Tatarinov_Maxim"]
[Result "0-1"]
[WhiteElo "1317"]
[BlackElo "2281"]
[TimeControl "300"]
[EndTime "23:18:55 PDT"]
[Termination "Tatarinov_Maxim won by resignation"]

1. e4 {[%clk 0:04:59.1]} 1... c5 {[%clk 0:04:58.2]} 2. b3 {[%clk 0:04:57.9]}
2... d6 {[%clk 0:04:55.5]} 3. Bb2 {[%clk 0:04:54.2]} 3... e5 {[%clk 0:04:54.6]}
4. Nc3 {[%clk 0:04:44.4]} 4... g6 {[%clk 0:04:53.1]} 5. Bc4 {[%clk 0:04:41.4]}
5... Bg7 {[%clk 0:04:52.1]} 6. Nd5 {[%clk 0:04:37.2]} 6... Ne7 {[%clk
0:04:49.2]} 7. Qf3 {[%clk 0:04:32.8]} 7... O-O {[%clk 0:04:47.4]} 8. Nf6+ {[%clk
0:04:23.4]} 8... Kh8 {[%clk 0:04:42.7]} 9. O-O-O {[%clk 0:04:14.4]} 9... Nd7
{[%clk 0:04:40.5]} 10. Nxd7 {[%clk 0:04:08.4]} 10... Bxd7 {[%clk 0:04:40.4]} 11.
Nh3 {[%clk 0:04:03.3]} 11... f5 {[%clk 0:04:03.3]} 12. Ng5 {[%clk 0:03:58.4]}
12... Nc6 {[%clk 0:03:41.6]} 13. Nf7+ {[%clk 0:03:54]} 13... Rxf7 {[%clk
0:03:40.9]} 14. Bxf7 {[%clk 0:03:51.4]} 14... Nd4 {[%clk 0:03:39.4]} 15. Bxd4
{[%clk 0:03:49]} 15... cxd4 {[%clk 0:03:39.3]} 16. Bd5 {[%clk 0:03:44.6]} 16...
Bc6 {[%clk 0:03:36.7]} 17. Bxc6 {[%clk 0:03:42.9]} 17... bxc6 {[%clk 0:03:36.6]}
18. exf5 {[%clk 0:03:39.5]} 18... gxf5 {[%clk 0:03:32.8]} 19. Qxf5 {[%clk
0:03:38.4]} 19... a5 {[%clk 0:03:32.7]} 20. h4 {[%clk 0:03:28.8]} 20... a4
{[%clk 0:03:31.6]} 21. h5 {[%clk 0:03:24]} 21... axb3 {[%clk 0:03:30.6]} 22.
axb3 {[%clk 0:03:21]} 22... Qa5 {[%clk 0:03:22.6]} 23. d3 {[%clk 0:03:19.1]}
23... Qc3 {[%clk 0:03:21.5]} 0-1

[Event "Live Chess"]
[Site "Chess.com"]
[Date "2024.06.02"]
[Round "-"]
[White "JoeyCage"]
[Black "KeithArkell"]
[Result "1/2-1/2"]
[WhiteElo "2396"]
[BlackElo "2422"]
[TimeControl "300"]
[EndTime "23:18:57 PDT"]
[Termination "Game drawn - insufficient material"]

1. e4 {[%clk 0:04:56.6]} 1... c6 {[%clk 0:04:59.3]} 2. d4 {[%clk 0:04:55.2]}
2... d5 {[%clk 0:04:58.8]} 3. e5 {[%clk 0:04:52.8]} 3... c5 {[%clk 0:04:58]} 4.
dxc5 {[%clk 0:04:51.7]} 4... Nc6 {[%clk 0:04:57.1]} 5. a3 {[%clk 0:04:48.1]}
5... a5 {[%clk 0:04:55.5]} 6. Bb5 {[%clk 0:04:43.7]} 6... e6 {[%clk 0:04:51.8]}
7. Be3 {[%clk 0:04:38.6]} 7... Bd7 {[%clk 0:04:50.3]} 8. Bxc6 {[%clk 0:04:34.9]}
8... Bxc6 {[%clk 0:04:49.7]} 9. Nf3 {[%clk 0:04:33.6]} 9... Ne7 {[%clk
0:04:48.9]} 10. O-O {[%clk 0:04:26.6]} 10... Nf5 {[%clk 0:04:48.1]} 11. Bd4
{[%clk 0:04:22.1]} 11... Nxd4 {[%clk 0:04:47.3]} 12. Qxd4 {[%clk 0:04:20.5]}
12... a4 {[%clk 0:04:46.7]} 13. Rd1 {[%clk 0:04:12.2]} 13... Qa5 {[%clk
0:04:44.4]} 14. c4 {[%clk 0:04:00.2]} 14... Qxc5 {[%clk 0:04:42.1]} 15. Qxc5
{[%clk 0:03:58.3]} 15... Bxc5 {[%clk 0:04:40.9]} 16. cxd5 {[%clk 0:03:57.2]}
16... Bxd5 {[%clk 0:04:40.4]} 17. Nc3 {[%clk 0:03:56.2]} 17... Bxf3 {[%clk
0:04:39.5]} 18. gxf3 {[%clk 0:03:54.8]} 18... Ke7 {[%clk 0:04:37.5]} 19. Rac1
{[%clk 0:03:47.8]} 19... b6 {[%clk 0:04:16.5]} 20. Ne4 {[%clk 0:03:40.8]} 20...
Rhd8 {[%clk 0:04:13.8]} 21. Rxd8 {[%clk 0:03:31.3]} 21... Rxd8 {[%clk
0:04:12.4]} 22. Nxc5 {[%clk 0:03:30.3]} 22... bxc5 {[%clk 0:04:11.7]} 23. Rxc5
{[%clk 0:03:28.8]} 23... Rd2 {[%clk 0:04:10.6]} 24. Rc7+ {[%clk 0:03:25.2]}
24... Ke8 {[%clk 0:04:09.2]} 25. Rc4 {[%clk 0:03:21.6]} 25... Rxb2 {[%clk
0:04:07.3]} 26. Rxa4 {[%clk 0:03:20.5]} 26... g5 {[%clk 0:04:06.9]} 27. h3
{[%clk 0:03:17]} 27... Kf8 {[%clk 0:04:05.2]} 28. f4 {[%clk 0:03:14.4]} 28... h6
{[%clk 0:04:01.9]} 29. fxg5 {[%clk 0:03:13]} 29... hxg5 {[%clk 0:04:01.6]} 30.
Kg2 {[%clk 0:03:12.1]} 30... Kg7 {[%clk 0:04:00.5]} 31. Kg3 {[%clk 0:03:09.8]}
31... Ra2 {[%clk 0:03:57.5]} 32. Ra7 {[%clk 0:03:02.9]} 32... Kg6 {[%clk
0:03:55.1]} 33. a4 {[%clk 0:03:01.5]} 33... Ra3+ {[%clk 0:03:50]} 34. f3 {[%clk
0:02:59.8]} 34... Re3 {[%clk 0:03:47.9]} 35. Ra5 {[%clk 0:02:55.4]} 35... Kf5
{[%clk 0:03:46.9]} 36. Kf2 {[%clk 0:02:52.8]} 36... Ra3 {[%clk 0:03:45]} 37. Ra7
{[%clk 0:02:51.3]} 37... Kxe5 {[%clk 0:03:35.2]} 38. Rxf7 {[%clk 0:02:49]} 38...
Rxa4 {[%clk 0:03:34.6]} 39. Kg3 {[%clk 0:02:46.4]} 39... Rb4 {[%clk 0:03:33]}
40. Rf8 {[%clk 0:02:45]} 40... Rb1 {[%clk 0:03:30.7]} 41. Rf7 {[%clk 0:02:43.3]}
41... Rg1+ {[%clk 0:03:29.5]} 42. Kf2 {[%clk 0:02:42]} 42... Rh1 {[%clk
0:03:28]} 43. Kg2 {[%clk 0:02:41.1]} 43... Ra1 {[%clk 0:03:26.6]} 44. Kg3 {[%clk
0:02:40.2]} 44... Kd4 {[%clk 0:03:23.4]} 45. Rg7 {[%clk 0:02:34.6]} 45... Ke3
{[%clk 0:03:11]} 46. Rxg5 {[%clk 0:02:18.3]} 46... Rg1+ {[%clk 0:03:07.1]} 47.
Kh4 {[%clk 0:02:16.4]} 47... Rxg5 {[%clk 0:03:02.4]} 48. Kxg5 {[%clk 0:02:15.3]}
48... Kxf3 {[%clk 0:03:01.8]} 49. Kf6 {[%clk 0:02:05.6]} 49... Kg3 {[%clk
0:03:00.3]} 50. Kxe6 {[%clk 0:02:04.6]} 50... Kxh3 {[%clk 0:02:59.6]} 1/2-1/2

[Event "Live Chess"]
[Site "Chess.com"]
[Date "2024.06.02"]
[Round "-"]
[White "RockTroll"]
[Black "RichardABates"]
[Result "1-0"]
[WhiteElo "2198"]
[BlackElo "2353"]
[TimeControl "300"]
[EndTime "23:20:57 PDT"]
[Termination "RockTroll won on time"]

1. e4 {[%clk 0:04:58]} 1... c5 {[%clk 0:04:57.2]} 2. c3 {[%clk 0:04:56.4]} 2...
d6 {[%clk 0:04:52.9]} 3. d4 {[%clk 0:04:55.1]} 3... Nf6 {[%clk 0:04:51.2]} 4.
Bd3 {[%clk 0:04:53.6]} 4... Nc6 {[%clk 0:04:49.5]} 5. Nf3 {[%clk 0:04:52.4]}
5... e5 {[%clk 0:04:47.7]} 6. d5 {[%clk 0:04:43.2]} 6... Ne7 {[%clk 0:04:46]} 7.
h3 {[%clk 0:04:40.3]} 7... Ng6 {[%clk 0:04:43.6]} 8. c4 {[%clk 0:04:39.3]} 8...
Be7 {[%clk 0:04:40.9]} 9. Nc3 {[%clk 0:04:38.6]} 9... O-O {[%clk 0:04:38.8]} 10.
g4 {[%clk 0:04:37.8]} 10... Nf4 {[%clk 0:04:27.1]} 11. Bxf4 {[%clk 0:04:34.5]}
11... exf4 {[%clk 0:04:25.7]} 12. Qd2 {[%clk 0:04:34.2]} 12... Nd7 {[%clk
0:04:19.9]} 13. Qxf4 {[%clk 0:04:32.6]} 13... a6 {[%clk 0:04:15.8]} 14. O-O
{[%clk 0:04:30.4]} 14... Ne5 {[%clk 0:03:53.7]} 15. Nxe5 {[%clk 0:04:27.3]}
15... dxe5 {[%clk 0:03:52.5]} 16. Qxe5 {[%clk 0:04:26.6]} 16... Bd6 {[%clk
0:03:51.1]} 17. Qh5 {[%clk 0:04:24.8]} 17... Bf4 {[%clk 0:03:45.2]} 18. g5
{[%clk 0:03:57.5]} 18... g6 {[%clk 0:03:39.1]} 19. Qh4 {[%clk 0:03:52.5]} 19...
Bxg5 {[%clk 0:03:19.4]} 20. Qg3 {[%clk 0:03:50.5]} 20... Bh4 {[%clk 0:03:06.5]}
21. Qg2 {[%clk 0:03:48.7]} 21... Bf6 {[%clk 0:02:56.2]} 22. f4 {[%clk
0:03:28.1]} 22... Bd4+ {[%clk 0:02:53.7]} 23. Kh1 {[%clk 0:03:27.5]} 23... Qh4
{[%clk 0:02:49.5]} 24. Kh2 {[%clk 0:03:25]} 24... Kh8 {[%clk 0:02:46]} 25. e5
{[%clk 0:03:21.7]} 25... g5 {[%clk 0:02:42.1]} 26. Ne2 {[%clk 0:02:55.5]} 26...
gxf4 {[%clk 0:02:37.8]} 27. Nxd4 {[%clk 0:02:52.7]} 27... cxd4 {[%clk
0:02:36.3]} 28. Rg1 {[%clk 0:02:48.8]} 28... Qh6 {[%clk 0:02:20]} 29. Qf3 {[%clk
0:02:34.6]} 29... Bd7 {[%clk 0:02:15.8]} 30. Rae1 {[%clk 0:02:20.9]} 30... Rg8
{[%clk 0:02:12.6]} 31. e6 {[%clk 0:02:19.6]} 31... fxe6 {[%clk 0:02:07.9]} 32.
Qe4 {[%clk 0:02:12.4]} 32... Rg7 {[%clk 0:01:28.8]} 33. Rxg7 {[%clk 0:01:57]}
33... Qxg7 {[%clk 0:01:19.8]} 34. Rg1 {[%clk 0:01:56.5]} 34... exd5 {[%clk
0:01:14.9]} 35. Qxf4 {[%clk 0:01:48.1]} 35... Rf8 {[%clk 0:01:04.7]} 36. Rxg7
{[%clk 0:01:46.3]} 36... Rxf4 {[%clk 0:01:02.6]} 37. Rxh7+ {[%clk 0:01:41.1]}
37... Kg8 {[%clk 0:01:01]} 38. Rxd7 {[%clk 0:01:40.7]} 38... Rf3 {[%clk
0:00:52.9]} 39. Bh7+ {[%clk 0:01:35.6]} 39... Kh8 {[%clk 0:00:51.3]} 40. cxd5
{[%clk 0:01:35.2]} 40... d3 {[%clk 0:00:49.9]} 41. Kg2 {[%clk 0:01:25.3]} 41...
Re3 {[%clk 0:00:36.6]} 42. Bxd3 {[%clk 0:01:17.3]} 42... Rxd3 {[%clk 0:00:35]}
43. b3 {[%clk 0:00:58.3]} 43... b5 {[%clk 0:00:24.5]} 44. d6 {[%clk 0:00:56.6]}
44... a5 {[%clk 0:00:22.3]} 45. Rd8+ {[%clk 0:00:55]} 45... Kg7 {[%clk
0:00:20.7]} 46. d7 {[%clk 0:00:54.7]} 46... a4 {[%clk 0:00:19.2]} 47. bxa4
{[%clk 0:00:52.6]} 47... bxa4 {[%clk 0:00:18]} 48. Kf2 {[%clk 0:00:50.6]} 48...
a3 {[%clk 0:00:16.9]} 49. Ke2 {[%clk 0:00:49.7]} 49... Rd6 {[%clk 0:00:15.3]}
50. Ke3 {[%clk 0:00:48.8]} 50... Rd5 {[%clk 0:00:14.2]} 51. Ke4 {[%clk 0:00:48]}
51... Rd2 {[%clk 0:00:12.4]} 52. h4 {[%clk 0:00:46.6]} 52... Rd1 {[%clk
0:00:10.6]} 53. h5 {[%clk 0:00:45.9]} 53... Kh7 {[%clk 0:00:08.7]} 54. h6 {[%clk
0:00:43.7]} 54... Re1+ {[%clk 0:00:06.9]} 55. Kd5 {[%clk 0:00:42.6]} 55... Rd1+
{[%clk 0:00:05.9]} 56. Kc4 {[%clk 0:00:41.1]} 56... Rd2 {[%clk 0:00:04.5]} 57.
Kb3 {[%clk 0:00:40.1]} 57... Rd1 {[%clk 0:00:03.7]} 58. Kxa3 {[%clk 0:00:39.4]}
58... Rd3+ {[%clk 0:00:02.4]} 59. Kb4 {[%clk 0:00:38.4]} 59... Rd4+ {[%clk
0:00:01.4]} 60. Kc3 {[%clk 0:00:37.6]} 60... Rd6 {[%clk 0:00:00.3]} 61. a4
{[%clk 0:00:36.2]} 1-0

[Event "Live Chess"]
[Site "Chess.com"]
[Date "2024.06.02"]
[Round "-"]
[White "vincents82"]
[Black "booktrunk"]
[Result "0-1"]
[WhiteElo "2010"]
[BlackElo "1541"]
[TimeControl "300"]
[EndTime "23:21:10 PDT"]
[Termination "booktrunk won by resignation"]

1. e4 {[%clk 0:04:48.1]} 1... b6 {[%clk 0:04:54.2]} 2. d4 {[%clk 0:04:46.7]}
2... Bb7 {[%clk 0:04:47.6]} 3. Nc3 {[%clk 0:04:45.6]} 3... e6 {[%clk 0:04:45.9]}
4. Nf3 {[%clk 0:04:45.1]} 4... Bb4 {[%clk 0:04:44]} 5. Bd3 {[%clk 0:04:44]} 5...
Bxc3+ {[%clk 0:04:42.7]} 6. bxc3 {[%clk 0:04:43]} 6... Nf6 {[%clk 0:04:41.6]} 7.
Qe2 {[%clk 0:04:42.4]} 7... h6 {[%clk 0:04:39.3]} 8. Bd2 {[%clk 0:04:41.5]} 8...
d6 {[%clk 0:04:37]} 9. e5 {[%clk 0:04:39.6]} 9... dxe5 {[%clk 0:04:34.6]} 10.
Nxe5 {[%clk 0:04:38.6]} 10... Nfd7 {[%clk 0:04:31.5]} 11. O-O {[%clk 0:04:32.1]}
11... Nxe5 {[%clk 0:04:30]} 12. dxe5 {[%clk 0:04:30]} 12... Nd7 {[%clk
0:04:23.3]} 13. Rad1 {[%clk 0:04:25.4]} 13... O-O {[%clk 0:04:20.6]} 14. Qg4
{[%clk 0:04:23.2]} 14... f5 {[%clk 0:04:13.6]} 15. exf6 {[%clk 0:04:21.4]} 15...
Rxf6 {[%clk 0:04:10.6]} 16. Bc4 {[%clk 0:04:16.9]} 16... Bd5 {[%clk 0:04:02.6]}
17. Bxd5 {[%clk 0:03:57.4]} 17... exd5 {[%clk 0:04:02.5]} 18. Be3 {[%clk
0:03:54.9]} 18... c6 {[%clk 0:03:57.2]} 19. Bd4 {[%clk 0:03:53.7]} 19... Rf7
{[%clk 0:03:51.8]} 20. Rfe1 {[%clk 0:03:52.5]} 20... Nf6 {[%clk 0:03:43.8]} 21.
Qe6 {[%clk 0:03:44.5]} 21... Qe8 {[%clk 0:03:27.6]} 22. Qf5 {[%clk 0:03:19.9]}
22... Ne4 {[%clk 0:03:20.8]} 23. f3 {[%clk 0:03:15.5]} 23... Rxf5 {[%clk
0:03:17.3]} 24. fxe4 {[%clk 0:03:13.6]} 24... dxe4 {[%clk 0:03:15.2]} 0-1

[Event "Live Chess"]
[Site "Chess.com"]
[Date "2024.06.02"]
[Round "-"]
[White "SavagePawn7"]
[Black "Crowded_House"]
[Result "0-1"]
[WhiteElo "641"]
[BlackElo "1690"]
[TimeControl "300"]
[EndTime "23:21:18 PDT"]
[Termination "Crowded_House won by resignation"]

1. e4 {[%clk 0:04:56.1]} 1... e6 {[%clk 0:04:59.6]} 2. d4 {[%clk 0:04:54.3]}
2... d5 {[%clk 0:04:59]} 3. c4 {[%clk 0:04:52.9]} 3... dxe4 {[%clk 0:04:53.5]}
4. d5 {[%clk 0:04:51.5]} 4... exd5 {[%clk 0:04:49.8]} 5. cxd5 {[%clk 0:04:50.2]}
5... Nf6 {[%clk 0:04:47.1]} 6. Nc3 {[%clk 0:04:48.1]} 6... Nbd7 {[%clk
0:04:42.1]} 7. Be3 {[%clk 0:04:38.7]} 7... Bb4 {[%clk 0:04:30.8]} 8. Bb5 {[%clk
0:04:18.6]} 8... O-O {[%clk 0:04:25.8]} 9. Ne2 {[%clk 0:04:04.2]} 9... a6 {[%clk
0:04:22.3]} 10. Bc4 {[%clk 0:03:50.2]} 10... b5 {[%clk 0:04:11.4]} 11. Bb3
{[%clk 0:03:48.1]} 11... Nb6 {[%clk 0:04:08.9]} 12. O-O {[%clk 0:03:27.4]} 12...
Bxc3 {[%clk 0:04:06.8]} 13. Nxc3 {[%clk 0:03:17.6]} 13... Bb7 {[%clk 0:03:59.5]}
14. Bxb6 {[%clk 0:03:11.7]} 14... cxb6 {[%clk 0:03:58]} 15. Re1 {[%clk
0:03:05.4]} 15... Re8 {[%clk 0:03:34.8]} 16. Re2 {[%clk 0:02:41.5]} 16... Qd6
{[%clk 0:03:24.7]} 17. Rc1 {[%clk 0:02:05]} 17... Rad8 {[%clk 0:03:21.7]} 18.
Rd2 {[%clk 0:01:57.2]} 18... e3 {[%clk 0:03:14.5]} 19. fxe3 {[%clk 0:01:55.1]}
19... Rxe3 {[%clk 0:03:13.4]} 20. Re2 {[%clk 0:01:36.4]} 20... Rxe2 {[%clk
0:03:05.9]} 21. Qxe2 {[%clk 0:01:35]} 21... h6 {[%clk 0:02:55.3]} 22. Rd1 {[%clk
0:01:29.2]} 22... Re8 {[%clk 0:02:52.5]} 23. Qf2 {[%clk 0:01:15]} 23... Ne4
{[%clk 0:02:32.1]} 24. Nxe4 {[%clk 0:01:11.8]} 24... Rxe4 {[%clk 0:02:31.1]} 25.
Bc2 {[%clk 0:00:51.5]} 25... Re5 {[%clk 0:02:22.6]} 26. Qg3 {[%clk 0:00:26.1]}
26... Kf8 {[%clk 0:01:58]} 27. Qd3 {[%clk 0:00:20.3]} 27... g6 {[%clk
0:01:55.1]} 28. Qd2 {[%clk 0:00:11.2]} 28... Kg7 {[%clk 0:01:53.2]} 29. Re1
{[%clk 0:00:07.6]} 29... Rxe1+ {[%clk 0:01:51.4]} 30. Qxe1 {[%clk 0:00:06.4]}
30... Qxd5 {[%clk 0:01:43.9]} 0-1

[Event "Live Chess"]
[Site "Chess.com"]
[Date "2024.06.02"]
[Round "-"]
[White "KyryloPoluliakh"]
[Black "MaximKovalenko83"]
[Result "1-0"]
[WhiteElo "1536"]
[BlackElo "2175"]
[TimeControl "300"]
[EndTime "23:21:33 PDT"]
[Termination "KyryloPoluliakh won by resignation"]

1. c4 {[%clk 0:04:57.8]} 1... e5 {[%clk 0:04:58.5]} 2. Nc3 {[%clk 0:04:56.9]}
2... d6 {[%clk 0:04:57.4]} 3. g3 {[%clk 0:04:56]} 3... c5 {[%clk 0:04:56.5]} 4.
Bg2 {[%clk 0:04:55]} 4... Nc6 {[%clk 0:04:56.1]} 5. e3 {[%clk 0:04:51]} 5... f5
{[%clk 0:04:54.9]} 6. Nge2 {[%clk 0:04:49.5]} 6... Nf6 {[%clk 0:04:53.9]} 7. O-O
{[%clk 0:04:48]} 7... Be7 {[%clk 0:04:53.1]} 8. d4 {[%clk 0:04:44.5]} 8... cxd4
{[%clk 0:04:49.8]} 9. exd4 {[%clk 0:04:43.6]} 9... e4 {[%clk 0:04:49.1]} 10. f3
{[%clk 0:04:37.9]} 10... exf3 {[%clk 0:04:46.3]} 11. Bxf3 {[%clk 0:04:34.7]}
11... O-O {[%clk 0:04:46.2]} 12. b3 {[%clk 0:04:28.1]} 12... a5 {[%clk
0:04:30.6]} 13. Nf4 {[%clk 0:04:25.9]} 13... Qb6 {[%clk 0:04:25.2]} 14. Be3
{[%clk 0:04:16.3]} 14... Qd8 {[%clk 0:04:10.1]} 15. Bf2 {[%clk 0:04:08.2]} 15...
Re8 {[%clk 0:03:26.7]} 16. Re1 {[%clk 0:04:03.6]} 16... Bf8 {[%clk 0:03:23.7]}
17. Rxe8 {[%clk 0:03:54.8]} 17... Qxe8 {[%clk 0:03:23.6]} 18. Ncd5 {[%clk
0:03:51.4]} 18... Nxd5 {[%clk 0:03:17.2]} 19. Nxd5 {[%clk 0:03:45.1]} 19... Qd8
{[%clk 0:03:01.6]} 20. Qc2 {[%clk 0:03:27.3]} 20... Nb4 {[%clk 0:02:58.8]} 21.
Qd2 {[%clk 0:03:22.7]} 21... Nxd5 {[%clk 0:02:55]} 22. Bxd5+ {[%clk 0:03:18.3]}
22... Kh8 {[%clk 0:02:54.1]} 23. Qf4 {[%clk 0:03:14]} 23... a4 {[%clk 0:02:51]}
24. b4 {[%clk 0:03:10.2]} 24... a3 {[%clk 0:02:49.7]} 25. Re1 {[%clk 0:03:01.6]}
25... Bd7 {[%clk 0:02:41.1]} 26. Bxb7 {[%clk 0:02:41.2]} 26... Rb8 {[%clk
0:02:39.4]} 27. Bd5 {[%clk 0:02:37.3]} 27... Rxb4 {[%clk 0:02:37.4]} 28. Re3
{[%clk 0:02:27.7]} 28... Rb1+ {[%clk 0:02:20.3]} 29. Kg2 {[%clk 0:02:22.6]}
29... Qa5 {[%clk 0:02:18.5]} 30. Qf3 {[%clk 0:01:54.1]} 30... Qd2 {[%clk
0:02:10.4]} 31. Rxa3 {[%clk 0:01:47.8]} 31... Rb8 {[%clk 0:01:57.3]} 32. Ra7
{[%clk 0:01:40.3]} 32... Bc8 {[%clk 0:01:51.4]} 33. Rf7 {[%clk 0:01:34.5]} 33...
Ba6 {[%clk 0:01:43]} 34. Qxf5 {[%clk 0:01:23.5]} 34... h6 {[%clk 0:01:33.2]} 35.
Rxf8+ {[%clk 0:01:16.8]} 35... Rxf8 {[%clk 0:01:33.1]} 36. Qxf8+ {[%clk
0:01:13.9]} 36... Kh7 {[%clk 0:01:32.4]} 37. Be4+ {[%clk 0:01:08.7]} 37... g6
{[%clk 0:01:29.7]} 38. Qf7+ {[%clk 0:01:05.6]} 38... Kh8 {[%clk 0:01:28.8]} 39.
Bxg6 {[%clk 0:01:00.2]} 1-0